lending/lending_fUSD_20241124
["ID","MTS","AMOUNT","RATE_DAILY","PERIOD"]
[343209709,1732459838638,-220.5192,0.00047923,2]
[343209710,1732459838650,-1779.34710177,0.00047927,15]
[343209711,1732459838663,-977.12298037,0.00047928,15]
[343209712,1732459838679,-257.0,0.00047945,3]
[343209713,1732459838690,-200.0,0.00047993,4]
[343209714,1732459838701,-200.0,0.00048,2]
[343209715,1732459838712,-617.34548129,0.00048,2]
[343209716,1732459838724,-925.0,0.00048,24]
[343209717,1732459838738,-448.0,0.00048,22]
[343209718,1732459838750,-1000.0,0.00048,22]
[343209719,1732459838760,-300.0,0.00048,3]
[343209720,1732459838771,-179.678,0.00048006,2]
[343209721,1732459838784,-152.17,0.00048013,2]
[343209722,1732459838803,-1000.0,0.00048023,120]
[343209723,1732459838816,-862.0,0.00048023,7]
[343209724,1732459838827,-87877.01655851,0.00048023,7]
[343209725,1732459838843,-53863.30616141,0.00048023,7]
[343209726,1732459838861,-16869.4621972,0.00048023,7]
[343209730,1732459839826,-1027.33650008,0.00048023,7]
[343209731,1732459839840,-1823.06121857,0.00048023,7]
[343209732,1732459839854,-365.11824037,0.00048023,7]
[343209733,1732459839874,-1356.29425231,0.00048023,7]
[343209789,1732459843943,-367.04112595,0.00045,120]
[343209790,1732459843956,-486.96887405,0.00045,120]
[343209791,1732459843966,-7440.44681528,0.00048023,7]
[343209792,1732459843999,-6803.25,0.00048023,7]
[343209793,1732459844058,-455945.12849377,0.00048023,7]
[343209794,1732459844239,-40259.50675786,0.00048023,7]
[343209795,1732459844251,-403.25617964,0.00048023,7]
[343209803,1732459845635,-3316.7,0.00048023,7]
[343209804,1732459845688,-686.0446,0.00048023,7]
[343209805,1732459845951,-217430.42021829,0.00048023,7]
[343209806,1732459845962,-11917.54769109,0.00048023,15]
[343209807,1732459845971,-190320.89668008,0.00048024,120]
[343209818,1732460999598,48878.0,0.0004,10]
[343209833,1732461031784,-550.0,0.00040995,5]
[343209834,1732461031793,-2358.8888512,0.00040996,2]
[343209835,1732461032063,-979.62,0.00040996,2]
[343209836,1732461032074,-3324.6,0.00040996,2]
[343209837,1732461032120,-1620.40512912,0.00040996,2]
[343209838,1732461032179,-6781.98916955,0.00040996,2]
[343209839,1732461032202,-4054.73086967,0.00040996,2]
[343209843,1732461038095,-4973.72741104,0.00040996,2]
[343209844,1732461038104,-159.35,0.00041096,2]
[343209845,1732461038113,-813.0,0.000435,2]
[343209846,1732461038122,-3464.25,0.00043564,30]
[343209847,1732461038132,-279.0,0.00043683,5]
[343209848,1732461038142,-806.18047558,0.000438,7]
[343209849,1732461038152,-572.09,0.0004414,2]
[343209850,1732461038161,-500.0,0.00045082,2]
[343209851,1732461038171,-1086.67,0.0004509,120]
[343209852,1732461038181,-250.0,0.00045133,120]
[343209853,1732461038191,-361.32633531,0.00045228,2]
[343209854,1732461038203,-638.67366469,0.00045228,2]
[343209855,1732461038213,-101.0868166,0.00045248,120]
[343209856,1732461038225,-51.9031834,0.00045248,120]
[343209857,1732461038234,-470.0968166,0.000456,120]
[343209858,1732461038250,-1234.741901,0.000456,120]
[343209859,1732461038262,-929.1912824,0.000456,120]
[343209860,1732461038272,-593.4732176,0.000456,120]
[343209864,1732461038299,-4406.5267824,0.000456,120]
[343209866,1732461038308,-341.32,0.00045644,120]
[343209867,1732461038321,-246.92,0.00045714,120]
[343209869,1732461038332,-1657.29,0.00045725,2]
[343209870,1732461038347,-954.69,0.00045755,120]
[343209871,1732461038368,-250.0,0.00045755,120]
[343209873,1732461038378,-189.26,0.00045894,2]
[343209875,1732461038388,-216.21,0.00046269,120]
[343209877,1732461038399,-572.09,0.00046404,2]
[343209879,1732461038409,-3396.52,0.00046449,2]
[343209881,1732461038418,-1000.0,0.00047,30]
[343209883,1732461038428,-9242.72951906,0.00047,120]
[343209887,1732461038462,-2272.36916998,0.00047,120]
[343209889,1732461038473,-1988.13808233,0.00047,120]
[343209890,1732461038484,-660.738245,0.00047,120]
[343209891,1732461038495,-22133.955,0.00047,120]
[343209897,1732461039792,-2433.26382745,0.00047,120]
[343209904,1732461042994,-6988.15770103,0.00047,120]
[343209905,1732461043006,-4951.18236745,0.00047,120]
[343209906,1732461043052,-359.10221921,0.00047,120]
[343209926,1732461045911,-1004.58647976,0.00047,120]
[343209927,1732461045922,-1193.38246842,0.00047,120]
[343209928,1732461045976,-2683.5563539,0.00047,120]
[343209929,1732461046042,-57994.24601234,0.00047,120]
[343209930,1732461046052,-194.95398766,0.0004705,15]
[343209931,1732461046236,-1228.52369381,0.0004705,15]
[343209932,1732461046246,-1000.0,0.0004715,30]
[343209933,1732461046255,-1000.0,0.0004725,30]
[343209934,1732461046265,-1000.0,0.0004745,30]
[343209935,1732461046275,-495.47630619,0.00047464,15]
[343209936,1732461107526,41639.19797823,0.00041,120]
[343209937,1732461200802,500.0,0.00041,120]
[343209938,1732461210524,2000.0,0.00041,120]
[343209939,1732461226871,500.0,0.00041,120]
[343209940,1732461232514,200.0,0.00041,120]
[343209942,1732461337514,150.0,0.0004,2]
[343209943,1732461380211,155.0,0.00041,120]
[343209949,1732461675957,816.999997,0.0004,2]
[343209956,1732461954310,2208.0,0.00015,10]
[343209960,1732462095239,151.0,0.0003,120]
[343209991,1732462232099,-158.36,0.00041096,2]
[343209992,1732462232110,-425.4603667,0.00044302,2]
[343209993,1732462232123,-89.4196333,0.00044302,2]
[343209994,1732462232134,-1231.1414872,0.00045,120]
[343209995,1732462232145,-715.51,0.000456,120]
[343209996,1732462232156,-1522.23,0.000456,120]
[343209997,1732462232167,-3222.61,0.000456,120]
[343209998,1732462232178,-819.0,0.0004595,40]
[343209999,1732462232189,-158.36,0.00046143,2]
[343210000,1732462232200,-1253.74,0.00046191,120]
[343210001,1732462232211,-500.0,0.00046223,2]
[343210002,1732462232222,-367.85242,0.00046449,32]
[343210003,1732462232234,-367.85242,0.0004646,32]
[343210004,1732462232246,-1000.0,0.00046484,2]
[343210005,1732462232257,-250.0,0.0004649,120]
[343210006,1732462232271,-514.88,0.00046566,2]
[343210007,1732462232282,-189.26,0.00046579,2]
[343210008,1732462232293,-586.21,0.000468,30]
[343210009,1732462232304,-622.398,0.00046815,78]
[343210010,1732462232315,-173.951712,0.00046849,14]
[343210011,1732462232326,-727.5336782,0.00046849,120]
[343210013,1732462232337,-727.5336782,0.00046849,120]
[343210016,1732462232348,-727.5336782,0.00046849,120]
[343210018,1732462232359,-727.5336782,0.00046849,120]
[343210020,1732462232370,-727.5336782,0.00046849,120]
[343210022,1732462232381,-727.5336782,0.00046849,120]
[343210024,1732462232392,-727.5336782,0.00046849,120]
[343210026,1732462232403,-727.5336782,0.00046849,120]
[343210029,1732462232414,-727.5336782,0.00046849,120]
[343210031,1732462232425,-727.5336782,0.00046849,120]
[343210033,1732462232436,-727.5336782,0.00046849,120]
[343210035,1732462232448,-727.5336782,0.00046849,120]
[343210037,1732462232458,-727.5336782,0.00046849,120]
[343210040,1732462232470,-727.5336782,0.00046849,120]
[343210042,1732462232481,-727.5336782,0.00046849,120]
[343210044,1732462232492,-727.5336782,0.00046849,120]
[343210046,1732462232503,-727.5336782,0.00046849,120]
[343210049,1732462232516,-727.5336782,0.00046849,120]
[343210051,1732462232527,-727.5336782,0.00046849,120]
[343210053,1732462232538,-727.53,0.00046849,120]
[343210055,1732462232550,-1091.30051729,0.00046849,120]
[343210057,1732462232561,-1091.30051729,0.00046849,120]
[343210059,1732462232573,-1091.30051729,0.00046849,120]
[343210060,1732462232584,-1091.30051729,0.00046849,120]
[343210062,1732462232595,-1091.30051729,0.00046849,120]
[343210064,1732462232606,-1091.30051729,0.00046849,120]
[343210066,1732462232617,-1091.30051729,0.00046849,120]
[343210068,1732462232628,-1091.30051729,0.00046849,120]
[343210070,1732462232639,-1091.30051729,0.00046849,120]
[343210072,1732462232651,-1091.30051729,0.00046849,120]
[343210075,1732462232662,-1091.30051729,0.00046849,120]
[343210077,1732462232672,-1091.30051729,0.00046849,120]
[343210079,1732462232684,-1091.30051729,0.00046849,120]
[343210081,1732462232695,-1091.30051729,0.00046849,120]
[343210083,1732462232706,-1091.30051729,0.00046849,120]
[343210085,1732462232719,-1091.30051729,0.00046849,120]
[343210086,1732462232731,-1091.30051729,0.00046849,120]
[343210088,1732462232742,-1091.30051729,0.00046849,120]
[343210089,1732462232753,-1091.30051729,0.00046849,120]
[343210090,1732462232766,-1091.3,0.00046849,120]
[343210091,1732462232777,-942.87629402,0.00046849,120]
[343210092,1732462232789,-942.87629402,0.00046849,120]
[343210093,1732462232801,-942.87629402,0.00046849,120]
[343210094,1732462232813,-942.87629402,0.00046849,120]
[343210095,1732462232825,-942.87629402,0.00046849,120]
[343210096,1732462232836,-942.87629402,0.00046849,120]
[343210097,1732462232845,-942.87629402,0.00046849,120]
[343210098,1732462232855,-942.87629402,0.00046849,120]
[343210099,1732462232864,-942.87629402,0.00046849,120]
[343210100,1732462232873,-942.87629402,0.00046849,120]
[343210101,1732462232883,-942.87629402,0.00046849,120]
[343210102,1732462232891,-942.87629402,0.00046849,120]
[343210103,1732462233139,-942.87629402,0.00046849,120]
[343210104,1732462233160,-942.87629402,0.00046849,120]
[343210105,1732462233170,-942.87629402,0.00046849,120]
[343210106,1732462233180,-942.87629402,0.00046849,120]
[343210107,1732462233189,-942.87629402,0.00046849,120]
[343210108,1732462233199,-942.87629402,0.00046849,120]
[343210109,1732462233209,-942.87629402,0.00046849,120]
[343210110,1732462233218,-942.87,0.00046849,120]
[343210111,1732462233228,-1414.31444102,0.00046849,120]
[343210112,1732462233237,-1414.31444102,0.00046849,120]
[343210113,1732462233247,-1414.31444102,0.00046849,120]
[343210114,1732462233257,-1414.31444102,0.00046849,120]
[343210115,1732462233268,-1414.31444102,0.00046849,120]
[343210116,1732462233278,-1414.31444102,0.00046849,120]
[343210117,1732462233288,-1414.31444102,0.00046849,120]
[343210118,1732462233298,-1414.31444102,0.00046849,120]
[343210119,1732462233307,-1414.31444102,0.00046849,120]
[343210120,1732462233317,-1414.31444102,0.00046849,120]
[343210121,1732462233327,-1414.31444102,0.00046849,120]
[343210122,1732462233337,-1414.31444102,0.00046849,120]
[343210123,1732462233347,-1414.31444102,0.00046849,120]
[343210124,1732462233356,-1414.31444102,0.00046849,120]
[343210125,1732462233365,-1414.31444102,0.00046849,120]
[343210126,1732462233375,-1414.31444102,0.00046849,120]
[343210127,1732462233384,-1414.31444102,0.00046849,120]
[343210128,1732462233394,-1414.31444102,0.00046849,120]
[343210129,1732462233403,-1414.31444102,0.00046849,120]
[343210130,1732462233412,-1414.31,0.00046849,120]
[343210131,1732462233422,-151.39877766,0.00046849,120]
[343210132,1732462233432,-151.39877766,0.00046849,120]
[343210133,1732462233442,-151.39877766,0.00046849,120]
[343210134,1732462233451,-151.39877766,0.00046849,120]
[343210135,1732462233460,-151.39877766,0.00046849,120]
[343210136,1732462233470,-151.39877766,0.00046849,120]
[343210137,1732462233479,-151.39877766,0.00046849,120]
[343210138,1732462233489,-151.39877766,0.00046849,120]
[343210139,1732462233498,-151.39,0.00046849,120]
[343210140,1732462233507,-157.22180757,0.00046849,120]
[343210141,1732462233518,-157.22180757,0.00046849,120]
[343210142,1732462233528,-157.22180757,0.00046849,120]
[343210143,1732462233538,-157.22180757,0.00046849,120]
[343210144,1732462233548,-157.22180757,0.00046849,120]
[343210145,1732462233558,-157.22180757,0.00046849,120]
[343210146,1732462233567,-157.22180757,0.00046849,120]
[343210147,1732462233577,-157.22180757,0.00046849,120]
[343210148,1732462233586,-157.22180757,0.00046849,120]
[343210149,1732462233595,-157.22180757,0.00046849,120]
[343210150,1732462233605,-157.22180757,0.00046849,120]
[343210151,1732462233614,-157.22180757,0.00046849,120]
[343210152,1732462233623,-157.22,0.00046849,120]
[343210153,1732462233632,-3750.2918,0.000469,2]
[343210154,1732462233642,-765.32,0.000469,30]
[343210155,1732462233651,-765.32,0.000469,30]
[343210156,1732462233660,-152.99,0.00047034,120]
[343210157,1732462233670,-367.85242,0.0004709,35]
[343210158,1732462233680,-1000.0,0.0004714,30]
[343210159,1732462233690,-339.5218169,0.00047521,2]
[343210160,1732462233699,-174.63416627,0.00047567,28]
[343210161,1732462233709,-5000.0,0.00047568,120]
[343210162,1732462233720,-511.165,0.00047568,2]
[343210163,1732462233733,-1376.0351,0.00047568,2]
[343210164,1732462233743,-7417.0462,0.00047568,2]
[343210165,1732462233753,-1231.58228265,0.00047568,15]
[343210166,1732462233764,-647.8188,0.0004757,2]
[343210167,1732462233777,-500.0,0.00047596,2]
[343210168,1732462233787,-631.18,0.00047596,2]
[343210169,1732462233796,-194.71544878,0.00047596,2]
[343210170,1732462233807,-184.33,0.00047596,2]
[343210171,1732462233817,-3366.57777402,0.00047597,22]
[343210172,1732462233830,-82962.11279487,0.00047597,22]
[343210177,1732462238100,-50549.81395897,0.00047597,22]
[343210182,1732462239937,-502.51693999,0.00047596,2]
[343210183,1732462239947,-3378.58521585,0.00047597,22]
[343210184,1732462239959,-10641.25062,0.00047597,22]
[343210185,1732462240114,-48630.82140681,0.00047597,22]
[343210197,1732462244247,-5000.0,0.00047568,120]
[343210198,1732462244256,-500.0,0.00047573,2]
[343210199,1732462244265,-156.69,0.00047587,30]
[343210200,1732462244276,-500.0,0.00047596,2]
[343210201,1732462244288,-500.0,0.00047596,2]
[343210202,1732462244297,-500.0,0.00047596,2]
[343210203,1732462244307,-24037.2214682,0.00047597,22]
[343210204,1732462244414,-1152.34550116,0.00047597,22]
[343210205,1732462244465,-2882.56850278,0.00047597,22]
[343210206,1732462244476,-16560.19806294,0.00047597,22]
[343210207,1732462244487,-6728.94782881,0.00047597,22]
[343210208,1732462244498,-3208.34696543,0.00047597,22]
[343210209,1732462244516,-27553.37927991,0.00047597,22]
[343210210,1732462244532,-160890.17854808,0.00047597,22]
[343210211,1732462244735,-1443.315,0.00047597,22]
[343210225,1732462245974,-500.0,0.00047596,2]
[343210226,1732462245984,-500.0,0.00047596,2]
[343210227,1732462245993,-47268.90707855,0.00047597,22]
[343210228,1732462246116,-1492.13527538,0.00047597,22]
[343210229,1732462246127,-7628.8449253,0.00047597,22]
[343210230,1732462246138,-963.82286,0.00047597,22]
[343210231,1732462246288,-331.03074,0.00047596,2]
[343210232,1732462246360,-168.96926,0.00047596,2]
[343210233,1732462246369,-2721.41062,0.00047597,22]
[343210262,1732462536691,1878.9,0.00041,120]
[343210287,1732463432271,-155.76,0.00041096,2]
[343210288,1732463432281,-139.91118106,0.00041096,2]
[343210289,1732463432293,-19.43881894,0.00041096,2]
[343210290,1732463432303,-463.39,0.00044169,2]
[343210291,1732463432312,-367.04,0.00045,120]
[343210292,1732463432322,-250.0,0.00045093,120]
[343210293,1732463432331,-2217.47152577,0.0004513,2]
[343210294,1732463432411,-1190.93847423,0.0004513,2]
[343210295,1732463432421,-197.53,0.00045267,120]
[343210296,1732463432431,-300.0,0.00045451,2]
[343210297,1732463432440,-2817.63,0.000456,120]
[343210298,1732463432449,-500.0,0.00045789,2]
[343210299,1732463432458,-253.27,0.00046066,2]
[343210300,1732463432468,-316.28,0.00046101,2]
[343210301,1732463432477,-153.47,0.0004616,120]
[343210302,1732463432487,-463.39,0.00046433,2]
[343210303,1732463432496,-765.32,0.00046541,30]
[343210304,1732463432512,-433.86,0.00046541,30]
[343210305,1732463432522,-765.32,0.00046541,30]
[343210306,1732463432531,-1000.0,0.00046612,2]
[343210307,1732463432540,-152.29152477,0.00046632,120]
[343210308,1732463432552,-20.66847523,0.00046632,120]
[343210309,1732463432561,-433.86,0.00046641,30]
[343210310,1732463432571,-765.32,0.00046641,30]
[343210311,1732463432581,-234.961,0.0004674,120]
[343210312,1732463432590,-867.5,0.00047159,30]
[343210313,1732463432600,-2760.2959,0.0004732,2]
[343210314,1732463432609,-339.5218169,0.00047345,2]
[343210315,1732463432618,-174.63416627,0.00047345,28]
[343210316,1732463432627,-959.36355587,0.00047345,15]
[343210317,1732463432637,-48938.98437735,0.000474,2]
[343210318,1732463432652,-274.9802596,0.000474,2]
[343210325,1732463438379,-962.88,0.000474,2]
[343210326,1732463438390,-108.50466305,0.000474,2]
[343210327,1732463438400,-783.45,0.0004741,30]
[343210328,1732463438409,-392.46459382,0.00047419,2]
[343210329,1732463438461,-334.0918575,0.00047419,2]
[343210330,1732463438472,-100.94354868,0.00047419,2]
[343210331,1732463438482,-500.0,0.00047419,2]
[343210332,1732463438491,-500.0,0.00047419,2]
[343210333,1732463438501,-500.0,0.00047419,2]
[343210334,1732463438514,-500.0,0.00047419,2]
[343210335,1732463438523,-500.0,0.00047419,2]
[343210336,1732463438533,-513.93,0.00047419,2]
[343210337,1732463438542,-500.0,0.00047419,2]
[343210338,1732463438551,-500.0,0.00047419,2]
[343210339,1732463438560,-500.0,0.00047419,2]
[343210340,1732463438570,-558.97298507,0.00047419,2]
[343210341,1732463438580,-1520.58,0.00047419,2]
[343210342,1732463438590,-500.0,0.00047419,2]
[343210343,1732463438599,-500.0,0.00047419,2]
[343210344,1732463438608,-500.0,0.00047419,2]
[343210345,1732463438617,-259.11766851,0.00047419,2]
[343210346,1732463438627,-500.0,0.00047419,2]
[343210347,1732463438637,-500.0,0.00047419,2]
[343210348,1732463438646,-500.0,0.00047419,2]
[343210349,1732463438656,-323.97281707,0.00047419,2]
[343210357,1732463440135,-386.06462008,0.00047419,2]
[343210359,1732463440147,-315.11256285,0.00047419,2]
[343210361,1732463440156,-69.69643715,0.00047419,2]
[343210376,1732463440632,-430.30356285,0.00047419,2]
[343210378,1732463440642,-500.0,0.00047419,2]
[343210380,1732463440651,-500.0,0.00047419,2]
[343210382,1732463440659,-589.8,0.00047419,2]
[343210384,1732463440669,-615.36,0.00047419,2]
[343210386,1732463440678,-500.0,0.00047419,2]
[343210387,1732463440687,-500.0,0.00047419,2]
[343210389,1732463440696,-175.93643741,0.00047419,2]
[343210392,1732463440707,-498.96356259,0.00047419,2]
[343210394,1732463440718,-45.00676465,0.00047419,2]
[343210396,1732463440729,-454.99323535,0.00047419,2]
[343210398,1732463440738,-500.0,0.00047419,2]
[343210400,1732463440747,-500.0,0.00047419,2]
[343210402,1732463440759,-490.11112602,0.00047419,2]
[343210404,1732463440769,-9.88887398,0.00047419,2]
[343210406,1732463440779,-500.0,0.00047419,2]
[343210408,1732463440788,-500.0,0.00047419,2]
[343210410,1732463440798,-211.83415861,0.00047419,2]
[343210414,1732463440826,-288.16584139,0.00047419,2]
[343210416,1732463440835,-223.67673704,0.00047419,2]
[343210443,1732463443411,-276.32326296,0.00047419,2]
[343210444,1732463443421,-485.23893866,0.00047419,2]
[343210445,1732463443430,-500.0,0.00047419,2]
[343210446,1732463443440,-500.0,0.00047419,2]
[343210447,1732463443450,-500.0,0.00047419,2]
[343210448,1732463443459,-500.0,0.00047419,2]
[343210449,1732463443469,-500.0,0.00047419,2]
[343210450,1732463443479,-500.0,0.00047419,2]
[343210451,1732463443488,-500.0,0.00047419,2]
[343210452,1732463443496,-500.0,0.00047419,2]
[343210453,1732463443505,-402.619263,0.00047419,2]
[343210454,1732463443520,-97.380737,0.00047419,2]
[343210455,1732463443530,-500.0,0.00047419,2]
[343210456,1732463443540,-2703.2500824,0.0004742,30]
[343210457,1732463443552,-2377.87184364,0.0004742,30]
[343210458,1732463443563,-4435.44370838,0.0004742,30]
[343210459,1732463443575,-5010.82059172,0.0004742,30]
[343210460,1732463443585,-2993.52260581,0.0004742,30]
[343210461,1732463443596,-801.40522963,0.0004742,30]
[343210462,1732463443607,-2789.8,0.0004742,30]
[343210463,1732463443620,-41168.97183642,0.0004742,30]
[343210464,1732463443673,-72676.68310385,0.0004742,30]
[343210467,1732463443684,-615.434585,0.0004742,30]
[343210469,1732463443696,-38567.1,0.0004742,30]
[343210500,1732463446232,-500.0,0.00047419,2]
[343210502,1732463446242,-500.0,0.00047419,2]
[343210504,1732463446251,-500.0,0.00047419,2]
[343210506,1732463446265,-7453.23106602,0.0004742,30]
[343210509,1732463446277,-2324.99999848,0.0004742,30]
[343210520,1732463446377,-46494.772,0.0004742,30]
[343210526,1732463446428,-55529.86879995,0.0004742,30]
[343210532,1732463446518,-1715.08175631,0.0004742,30]
[343210533,1732463446530,-4594.98548831,0.0004742,30]
[343210534,1732463446541,-262.47160431,0.0004742,30]
[343210536,1732463448327,4000.0,0.00035,30]
[343210585,1732463492270,4000.0,0.0004,30]
[343210591,1732463573993,1500.0,0.0004,30]
[343210595,1732463794534,155.171884,0.0004,2]
[343210598,1732463847975,151.0,0.0004,2]
[343210599,1732463855275,151.0,0.0004,2]
[343210601,1732463963012,179.16,0.00041,120]
[343210602,1732463963547,500.0,0.00041,120]
[343210614,1732464506743,5226.84,0.00041,120]
[343210642,1732464547796,350.0,0.0004,2]
[343210650,1732464621251,7171.31,0.0004,2]
[343210658,1732464632288,-200.0,0.00043,2]
[343210659,1732464632298,-759.95,0.000435,2]
[343210660,1732464632308,-17982.15808273,0.000435,2]
[343210661,1732464632317,-731.0,0.000436,2]
[343210662,1732464632326,-425.11,0.0004457,2]
[343210663,1732464632334,-497.919,0.0004457,71]
[343210664,1732464632344,-200.0,0.000452,2]
[343210665,1732464632353,-166.14,0.00046182,2]
[343210666,1732464632362,-1000.0,0.00046291,2]
[343210667,1732464632371,-250.0,0.00046353,120]
[343210668,1732464632380,-172.96,0.00046384,120]
[343210669,1732464632390,-154.2,0.00046432,120]
[343210670,1732464632399,-250.0,0.00046453,120]
[343210671,1732464632408,-300.0,0.000466,2]
[343210672,1732464632417,-400.0,0.000467,17]
[343210673,1732464632426,-900.0,0.000468,17]
[343210674,1732464632435,-425.11,0.00046834,2]
[343210675,1732464632448,-1400.0,0.000469,17]
[343210676,1732464632457,-758.33274,0.0004695,35]
[343210677,1732464632466,-91307.18696116,0.00047,120]
[343210678,1732464632478,-14561.74958663,0.00047,120]
[343210679,1732464632488,-20000.0,0.000472,3]
[343210680,1732464632497,-863.42720022,0.00047219,15]
[343210681,1732464632698,-8577.5969,0.00047245,2]
[343210682,1732464632708,-661.422472,0.0004725,60]
[343210683,1732464632717,-1101.3866,0.00047318,2]
[343210684,1732464632726,-7492.6262,0.00047318,2]
[343210685,1732464632735,-196.81106867,0.00047319,120]
[343210686,1732464632749,-793.03,0.00047343,2]
[343210687,1732464632759,-500.0,0.00047343,2]
[343210688,1732464632768,-500.0,0.00047343,2]
[343210690,1732464632777,-500.0,0.00047343,2]
[343210692,1732464632787,-500.0,0.00047343,2]
[343210694,1732464632796,-500.0,0.00047343,2]
[343210696,1732464632806,-1457.22,0.00047343,2]
[343210698,1732464632819,-609.66,0.00047343,2]
[343210700,1732464632834,-409.8837429,0.00047343,2]
[343210702,1732464632845,-1078.35,0.00047343,2]
[343210704,1732464632855,-500.0,0.00047343,2]
[343210705,1732464632865,-500.0,0.00047343,2]
[343210707,1732464632874,-500.0,0.00047343,2]
[343210709,1732464632883,-646.78,0.00047343,2]
[343210712,1732464632893,-500.0,0.00047343,2]
[343210714,1732464632902,-500.0,0.00047343,2]
[343210716,1732464632911,-500.0,0.00047343,2]
[343210718,1732464632920,-30524.75853691,0.00047344,30]
[343210720,1732464632935,-16604.20238658,0.00047344,30]
[343210723,1732464632961,-14400.0,0.00047344,30]
[343210726,1732464632974,-959.0,0.00047344,30]
[343210728,1732464632985,-3170.57403398,0.00047344,30]
[343210731,1732464632996,-3198.65784,0.00047344,30]
[343210735,1732464633008,-1672.14738427,0.00047344,30]
[343210739,1732464633023,-24520.94272945,0.00047344,30]
[343210747,1732464633070,-958.83,0.00047344,30]
[343210784,1732464638439,-500.0,0.00047343,2]
[343210785,1732464638448,-333.4453288,0.00047344,30]
[343210786,1732464638464,-10446.65468274,0.00047344,30]
[343210787,1732464638474,-196.81106866,0.00047382,120]
[343210788,1732464638483,-478.7857,0.00047397,2]
[343210789,1732464638494,-500.0,0.00047415,2]
[343210790,1732464638504,-500.0,0.00047415,2]
[343210791,1732464638514,-500.0,0.00047415,2]
[343210792,1732464638525,-500.0,0.00047415,2]
[343210793,1732464638538,-500.0,0.00047415,2]
[343210794,1732464638547,-500.0,0.00047415,2]
[343210795,1732464638557,-500.0,0.00047415,2]
[343210796,1732464638567,-500.0,0.00047415,2]
[343210797,1732464638578,-500.0,0.00047415,2]
[343210798,1732464638587,-500.0,0.00047415,2]
[343210799,1732464638598,-500.0,0.00047415,2]
[343210800,1732464638608,-500.0,0.00047415,2]
[343210801,1732464638620,-500.0,0.00047415,2]
[343210802,1732464638629,-500.0,0.00047416,2]
[343210803,1732464638639,-500.0,0.00047416,2]
[343210804,1732464638650,-500.0,0.00047416,2]
[343210805,1732464638660,-500.0,0.00047416,2]
[343210806,1732464638670,-500.0,0.00047416,2]
[343210807,1732464638681,-500.0,0.00047416,2]
[343210808,1732464638691,-500.0,0.00047416,2]
[343210809,1732464638707,-502.33531809,0.00047416,2]
[343210810,1732464638719,-500.0,0.00047416,2]
[343210811,1732464638729,-502.32358326,0.00047416,2]
[343210812,1732464638739,-500.0,0.00047416,2]
[343210813,1732464638749,-500.0,0.00047416,2]
[343210814,1732464638758,-505.62332996,0.00047416,2]
[343210815,1732464638768,-500.0,0.00047416,2]
[343210816,1732464638778,-500.0,0.00047416,2]
[343210817,1732464638788,-500.0,0.00047416,2]
[343210818,1732464638798,-505.06180745,0.00047416,2]
[343210819,1732464638807,-500.0,0.00047416,2]
[343210820,1732464638817,-512.81,0.00047416,2]
[343210821,1732464638827,-583.25,0.00047416,2]
[343210822,1732464638837,-500.0,0.00047416,2]
[343210823,1732464638847,-500.0,0.00047416,2]
[343210824,1732464638857,-500.0,0.00047416,2]
[343210825,1732464638866,-500.0,0.00047416,2]
[343210826,1732464638876,-502.6459647,0.00047416,2]
[343210827,1732464638885,-500.0,0.00047416,2]
[343210828,1732464638896,-500.0,0.00047416,2]
[343210829,1732464638905,-500.0,0.00047416,2]
[343210830,1732464638915,-500.0,0.00047416,2]
[343210831,1732464638924,-500.0,0.00047416,2]
[343210833,1732464638933,-500.0,0.00047416,2]